fUST/lending_fUST_20250606
["ID","MTS","AMOUNT","RATE_DAILY","PERIOD"]
[364733456,1749221454355,-223.847431,0.00020187,2]
[364733457,1749221454364,-5100.6586578,0.00020245,2]
[364733458,1749221454373,-433.77,0.00020273,2]
[364733459,1749221454382,-440.0,0.00020273,2]
[364733460,1749221454391,-440.0,0.00020273,2]
[364733461,1749221454401,-440.0,0.00020273,2]
[364733462,1749221454410,-440.0,0.00020273,2]
[364733463,1749221454419,-440.0,0.00020273,2]
[364733464,1749221454428,-400.0,0.00020273,2]
[364733465,1749221454438,-440.0,0.00020273,2]
[364733466,1749221454447,-487.07,0.00020273,2]
[364733467,1749221454456,-390.0,0.00020273,2]
[364733468,1749221454465,-390.0,0.00020273,2]
[364733469,1749221454475,-421.45533301,0.00020273,2]
[364733470,1749221454484,-519.30935665,0.00020273,2]
[364733471,1749221454493,-440.0,0.00020273,2]
[364733472,1749221454503,-440.0,0.00020273,2]
[364733473,1749221454513,-440.0,0.00020273,2]
[364733474,1749221454522,-440.0,0.00020273,2]
[364733475,1749221454531,-440.0,0.00020273,2]
[364733476,1749221454541,-440.0,0.00020273,2]
[364733477,1749221454550,-440.0,0.00020273,2]
[364733478,1749221454559,-440.0,0.00020273,2]
[364733479,1749221454569,-390.784115,0.00020273,2]
[364733480,1749221454577,-440.0,0.00020273,2]
[364733481,1749221454586,-212.33142567,0.00020273,2]
[364733482,1749221454596,-440.0,0.00020273,2]
[364733483,1749221454606,-440.0,0.00020273,2]
[364733484,1749221454615,-440.0,0.00020273,2]
[364733485,1749221454624,-440.0,0.00020273,2]
[364733486,1749221454633,-440.0,0.00020273,2]
[364733487,1749221454642,-440.0,0.00020273,2]
[364733488,1749221454651,-440.0,0.00020273,2]
[364733489,1749221454661,-440.0,0.00020273,2]
[364733490,1749221454670,-4395.92,0.00020273,2]
[364733491,1749221454679,-411.37203677,0.00020273,2]
[364733492,1749221454688,-440.0,0.00020273,2]
[364733493,1749221454699,-440.0,0.00020273,2]
[364733494,1749221454708,-440.0,0.00020273,2]
[364733495,1749221454718,-440.0,0.00020273,2]
[364733496,1749221454727,-500.0,0.00020273,2]
[364733497,1749221454736,-3484.56,0.00020273,2]
[364733498,1749221454745,-380.0,0.00020273,2]
[364733499,1749221454754,-440.0,0.00020273,2]
[364733500,1749221454764,-3431.75,0.00020273,2]
[364733501,1749221454774,-440.0,0.00020273,2]
[364733502,1749221454787,-440.0,0.00020273,2]
[364733503,1749221454796,-400.0,0.00020273,2]
[364733504,1749221454805,-440.0,0.00020273,2]
[364733505,1749221454814,-440.0,0.00020273,2]
[364733506,1749221454826,-440.0,0.00020273,2]
[364733507,1749221454835,-440.0,0.00020273,2]
[364733508,1749221454845,-553.92253522,0.00020273,2]
[364733509,1749221454856,-440.0,0.00020273,2]
[364733510,1749221454865,-440.0,0.00020273,2]
[364733511,1749221454874,-440.0,0.00020273,2]
[364733512,1749221454884,-2565.25,0.00020273,2]
[364733513,1749221454893,-410.0,0.00020273,2]
[364733514,1749221454902,-630.41,0.00020273,2]
[364733515,1749221454911,-420.0,0.00020273,2]
[364733516,1749221454920,-215.93064828,0.00020273,2]
[364733517,1749221454931,-440.0,0.00020273,2]
[364733518,1749221454941,-3341.58,0.00020273,2]
[364733519,1749221454952,-440.0,0.00020273,2]
[364733520,1749221454961,-1359.12,0.00020273,2]
[364733521,1749221454970,-390.0,0.00020273,2]
[364733522,1749221454980,-2695.29,0.00020273,2]
[364733523,1749221454990,-440.0,0.00020273,2]
[364733524,1749221455000,-1033.38,0.00020273,2]
[364733525,1749221455009,-440.0,0.00020273,2]
[364733526,1749221455018,-440.0,0.00020273,2]
[364733527,1749221455027,-440.0,0.00020273,2]
[364733528,1749221455037,-440.0,0.00020273,2]
[364733529,1749221455046,-440.0,0.00020273,2]
[364733530,1749221455055,-1275.03,0.00020273,2]
[364733531,1749221455065,-440.0,0.00020273,2]
[364733532,1749221455074,-440.0,0.00020273,2]
[364733533,1749221455084,-440.0,0.00020273,2]
[364733534,1749221455094,-440.0,0.00020273,2]
[364733535,1749221455104,-440.0,0.00020273,2]
[364733536,1749221455113,-390.0,0.00020273,2]
[364733537,1749221455124,-440.0,0.00020273,2]
[364733538,1749221455134,-1382.16,0.00020273,2]
[364733539,1749221455144,-201.6370925,0.00020273,2]
[364733540,1749221455154,-320.0,0.00020273,2]
[364733541,1749221455165,-440.0,0.00020273,2]
[364733542,1749221455175,-400.0,0.00020273,2]
[364733543,1749221455185,-440.0,0.00020273,2]
[364733544,1749221455195,-440.0,0.00020273,2]
[364733545,1749221455206,-712.69,0.00020273,2]
[364733546,1749221455215,-440.0,0.00020273,2]
[364733547,1749221455225,-7042.23,0.00020273,2]
[364733548,1749221455234,-440.0,0.00020273,2]
[364733549,1749221455244,-440.0,0.00020273,2]
[364733550,1749221455253,-440.0,0.00020273,2]
[364733551,1749221455263,-440.0,0.00020273,2]
[364733552,1749221455272,-440.0,0.00020273,2]
[364733553,1749221455281,-440.0,0.00020273,2]
[364733554,1749221455290,-440.0,0.00020273,2]
[364733555,1749221455298,-151.0,0.00020273,2]
[364733556,1749221455307,-2141.64,0.00020273,2]
[364733557,1749221455316,-400.0,0.00020273,2]
[364733558,1749221455325,-1048.92,0.00020273,2]
[364733559,1749221455340,-440.0,0.00020273,2]
[364733560,1749221455353,-1728.8,0.00020273,2]
[364733561,1749221455363,-440.0,0.00020273,2]
[364733562,1749221455371,-1610.94,0.00020273,2]
[364733563,1749221455381,-151.0,0.00020273,2]
[364733564,1749221455390,-440.0,0.00020273,2]
[364733565,1749221455399,-440.0,0.00020273,2]
[364733566,1749221455408,-440.0,0.00020273,2]
[364733567,1749221455418,-762.23,0.00020273,2]
[364733568,1749221455428,-400.0,0.00020273,2]
[364733569,1749221455438,-440.0,0.00020273,2]
[364733570,1749221455448,-440.0,0.00020273,2]
[364733571,1749221455458,-440.0,0.00020273,2]
[364733572,1749221455467,-440.0,0.00020273,2]
[364733573,1749221455477,-440.0,0.00020273,2]
[364733574,1749221455486,-440.0,0.00020273,2]
[364733575,1749221455495,-400.0,0.00020273,2]
[364733576,1749221455504,-440.0,0.00020273,2]
[364733577,1749221455513,-248.13025455,0.00020273,2]
[364733578,1749221455522,-440.0,0.00020273,2]
[364733579,1749221455531,-440.0,0.00020273,2]
[364733580,1749221455541,-440.0,0.00020273,2]
[364733581,1749221455554,-440.0,0.00020273,2]
[364733582,1749221455563,-440.0,0.00020273,2]
[364733583,1749221455572,-408.91441803,0.00020273,2]
[364733584,1749221455581,-440.0,0.00020273,2]
[364733585,1749221455591,-549.15,0.00020273,2]
[364733586,1749221455601,-440.0,0.00020273,2]
[364733587,1749221455610,-244.57051219,0.00020273,2]
[364733588,1749221455619,-440.0,0.00020273,2]
[364733589,1749221455629,-390.0,0.00020273,2]
[364733590,1749221455638,-1303.87,0.00020273,2]
[364733591,1749221455648,-440.0,0.00020273,2]
[364733592,1749221455657,-440.0,0.00020273,2]
[364733593,1749221455667,-440.0,0.00020273,2]
[364733594,1749221455676,-3348.6,0.00020273,2]
[364733595,1749221455685,-440.0,0.00020273,2]
[364733596,1749221455695,-440.0,0.00020273,2]
[364733597,1749221455705,-440.0,0.00020273,2]
[364733598,1749221455715,-440.0,0.00020273,2]
[364733599,1749221455724,-440.0,0.00020273,2]
[364733600,1749221455733,-400.0,0.00020273,2]
[364733601,1749221455743,-440.0,0.00020273,2]
[364733602,1749221455752,-3960.93,0.00020273,2]
[364733603,1749221455761,-151.0,0.00020273,2]
[364733604,1749221455771,-151.0,0.00020273,2]
[364733605,1749221455784,-440.0,0.00020273,2]
[364733606,1749221455794,-3666.78,0.00020273,2]
[364733607,1749221455803,-440.0,0.00020273,2]
[364733608,1749221455812,-440.0,0.00020273,2]
[364733609,1749221455823,-404.42737698,0.00020273,2]
[364733610,1749221455832,-229.52673067,0.0002035,2]
[364733611,1749221455843,-160.0,0.0002035,2]
[364733612,1749221455854,-834.50537533,0.0002035,2]
[364733613,1749221455863,-160.0,0.0002035,2]
[364733614,1749221455873,-423.83542519,0.0002035,2]
[364733615,1749221455883,-11849.89752062,0.00020354,2]
[364733616,1749221455894,-170.456833,0.00020354,2]
[364733617,1749221455904,-151.0,0.00020354,2]
[364733618,1749221455914,-160.0,0.00020358,2]
[364733619,1749221455924,-151.0,0.000204,4]
[364733620,1749221455933,-5100.6586578,0.00020417,3]
[364733621,1749221455943,-440.0,0.00020547,2]
[364733622,1749221455953,-440.0,0.00020547,2]
[364733623,1749221455963,-440.0,0.00020547,2]
[364733624,1749221455974,-440.0,0.00020547,2]
[364733625,1749221456071,-390.0,0.00020547,2]
[364733626,1749221456082,-487.07,0.00020547,2]
[364733627,1749221456091,-440.0,0.00020547,2]
[364733628,1749221456100,-440.0,0.00020547,2]
[364733629,1749221456109,-425.20072379,0.00020547,2]
[364733630,1749221456119,-380.0,0.00020547,2]
[364733631,1749221456129,-440.0,0.00020547,2]
[364733632,1749221456138,-440.0,0.00020547,2]
[364733633,1749221456147,-370.0,0.00020547,2]
[364733634,1749221456156,-522.66225048,0.00020547,2]
[364733635,1749221456165,-390.0,0.00020547,2]
[364733636,1749221456175,-440.0,0.00020547,2]
[364733637,1749221456184,-440.0,0.00020547,2]
[364733638,1749221456194,-440.0,0.00020547,2]
[364733639,1749221456204,-440.0,0.00020547,2]
[364733640,1749221456214,-440.0,0.00020547,2]
[364733641,1749221456223,-440.0,0.00020547,2]
[364733642,1749221456232,-440.0,0.00020547,2]
[364733643,1749221456242,-440.0,0.00020547,2]
[364733644,1749221456251,-4395.92,0.00020547,2]
[364733645,1749221456261,-440.0,0.00020547,2]
[364733646,1749221456271,-440.0,0.00020547,2]
[364733647,1749221456281,-440.0,0.00020547,2]
[364733648,1749221456290,-440.0,0.00020547,2]
[364733649,1749221456299,-581.46090903,0.00020547,2]
[364733650,1749221456309,-3484.56,0.00020547,2]
[364733651,1749221456318,-440.0,0.00020547,2]
[364733652,1749221456328,-3431.75,0.00020547,2]
[364733653,1749221456337,-440.0,0.00020547,2]
[364733654,1749221456347,-440.0,0.00020547,2]
[364733655,1749221456356,-440.0,0.00020547,2]
[364733656,1749221456367,-300.0,0.00020547,2]
[364733657,1749221456377,-440.0,0.00020547,2]
[364733658,1749221456386,-440.0,0.00020547,2]
[364733659,1749221456397,-440.0,0.00020547,2]
[364733660,1749221456407,-440.0,0.00020547,2]
[364733661,1749221456418,-262.2737234,0.00020547,2]
[364733662,1749221456428,-2565.25,0.00020547,2]
[364733663,1749221456438,-630.41,0.00020547,2]
[364733664,1749221456447,-350.0,0.00020547,2]
[364733665,1749221456457,-3341.58,0.00020547,2]
[364733666,1749221456467,-440.0,0.00020547,2]
[364733667,1749221456477,-1359.12,0.00020547,2]
[364733668,1749221456487,-2695.29,0.00020547,2]
[364733669,1749221456496,-390.0,0.00020547,2]
[364733670,1749221456505,-1033.38,0.00020547,2]
[364733671,1749221456515,-440.0,0.00020547,2]
[364733672,1749221456524,-440.0,0.00020547,2]
[364733673,1749221456534,-440.0,0.00020547,2]
[364733674,1749221456543,-440.0,0.00020547,2]
[364733675,1749221456553,-440.0,0.00020547,2]
[364733676,1749221456562,-1275.03,0.00020547,2]
[364733677,1749221456572,-365.61,0.00020547,2]
[364733678,1749221456582,-440.0,0.00020547,2]
[364733679,1749221456591,-440.0,0.00020547,2]
[364733680,1749221456602,-410.0,0.00020547,2]
[364733681,1749221456612,-390.0,0.00020547,2]
[364733682,1749221456624,-440.0,0.00020547,2]
[364733683,1749221456633,-1382.16,0.00020547,2]
[364733684,1749221456644,-440.0,0.00020547,2]
[364733685,1749221456653,-440.0,0.00020547,2]
[364733686,1749221456663,-440.0,0.00020547,2]
[364733687,1749221456673,-712.69,0.00020547,2]
[364733688,1749221456683,-440.0,0.00020547,2]
[364733689,1749221456693,-7042.23,0.00020547,2]
[364733690,1749221456703,-440.0,0.00020547,2]
[364733691,1749221456713,-410.0,0.00020547,2]
[364733692,1749221456730,-440.0,0.00020547,2]
[364733693,1749221456740,-440.0,0.00020547,2]
[364733694,1749221456749,-440.0,0.00020547,2]
[364733695,1749221456758,-440.0,0.00020547,2]
[364733696,1749221456769,-440.0,0.00020547,2]
[364733697,1749221456780,-2141.64,0.00020547,2]
[364733698,1749221456790,-1048.92,0.00020547,2]
[364733699,1749221456799,-440.0,0.00020547,2]
[364733700,1749221456809,-1728.8,0.00020547,2]
[364733701,1749221456819,-440.0,0.00020547,2]
[364733702,1749221456828,-1610.94,0.00020547,2]
[364733703,1749221456838,-438.16197052,0.00020547,2]
[364733704,1749221456849,-440.0,0.00020547,2]
[364733705,1749221456859,-762.23,0.00020547,2]
[364733706,1749221456869,-440.0,0.00020547,2]
[364733707,1749221456879,-390.0,0.00020547,2]
[364733708,1749221456888,-440.0,0.00020547,2]
[364733709,1749221456899,-177.05067932,0.00020547,2]
[364733710,1749221456908,-440.0,0.00020547,2]
[364733711,1749221456917,-440.0,0.00020547,2]
[364733712,1749221456927,-440.0,0.00020547,2]
[364733713,1749221456936,-440.0,0.00020547,2]
[364733714,1749221456946,-440.0,0.00020547,2]
[364733715,1749221456956,-440.0,0.00020547,2]
[364733716,1749221456966,-440.0,0.00020547,2]
[364733717,1749221456975,-440.0,0.00020547,2]
[364733718,1749221456985,-440.0,0.00020547,2]
[364733719,1749221456994,-549.15,0.00020547,2]
[364733720,1749221457004,-440.0,0.00020547,2]
[364733721,1749221457014,-440.0,0.00020547,2]
[364733722,1749221457023,-1303.87,0.00020547,2]
[364733723,1749221457033,-440.0,0.00020547,2]
[364733724,1749221457042,-391.1642006,0.00020547,2]
[364733725,1749221457052,-440.0,0.00020547,2]
[364733726,1749221457062,-3348.6,0.00020547,2]
[364733727,1749221457071,-370.0,0.00020547,2]
[364733728,1749221457081,-440.0,0.00020547,2]
[364733729,1749221457090,-440.0,0.00020547,2]
[364733730,1749221457100,-440.0,0.00020547,2]
[364733731,1749221457110,-440.0,0.00020547,2]
[364733732,1749221457119,-440.0,0.00020547,2]
[364733733,1749221457129,-3960.93,0.00020547,2]
[364733734,1749221457138,-440.0,0.00020547,2]
[364733735,1749221457147,-3666.78,0.00020547,2]
[364733736,1749221457157,-390.0,0.00020547,2]
[364733737,1749221457167,-440.0,0.00020547,2]
[364733738,1749221457176,-663.78195858,0.00020568,2]
[364733739,1749221457186,-504.43893691,0.00020568,2]
[364733740,1749221457196,-271.84,0.00020588,2]
[364733741,1749221457207,-5100.6586578,0.0002059,3]
[364733742,1749221457216,-858.9,0.000206,2]
[364733743,1749221457225,-1562.02,0.000206,2]
[364733744,1749221457238,-35715.28,0.000206,2]
[364733745,1749221457248,-800.0,0.00020664,2]
[364733746,1749221457257,-420.0,0.00020709,2]
[364733747,1749221457267,-3726.41862179,0.00020722,2]
[364733748,1749221457277,-151.0,0.00020762,2]
[364733749,1749221457286,-151.0,0.00020762,2]
[364733750,1749221457296,-152.087997,0.00020762,2]
[364733751,1749221457305,-5100.6586578,0.00020762,3]
[364733752,1749221457315,-151.0,0.000208,4]
[364733753,1749221457325,-430.0,0.00020821,2]
[364733754,1749221457334,-440.0,0.00020821,2]
[364733755,1749221457344,-440.0,0.00020821,2]
[364733756,1749221457353,-440.0,0.00020821,2]
[364733757,1749221457362,-487.07,0.00020821,2]
[364733758,1749221457372,-380.0,0.00020821,2]
[364733759,1749221457381,-440.0,0.00020821,2]
[364733760,1749221457391,-398.97257767,0.00020821,2]
[364733761,1749221457400,-440.0,0.00020821,2]
[364733762,1749221457410,-440.0,0.00020821,2]
[364733763,1749221457419,-380.0,0.00020821,2]
[364733764,1749221457429,-280.59963243,0.00020821,2]
[364733765,1749221457438,-440.0,0.00020821,2]
[364733766,1749221457448,-440.0,0.00020821,2]
[364733767,1749221457457,-440.0,0.00020821,2]
[364733768,1749221457467,-440.0,0.00020821,2]
[364733769,1749221457476,-440.0,0.00020821,2]
[364733770,1749221457486,-4395.92,0.00020821,2]
[364733771,1749221457496,-380.0,0.00020821,2]
[364733772,1749221457507,-380.0,0.00020821,2]
[364733773,1749221457517,-440.0,0.00020821,2]
[364733774,1749221457527,-440.0,0.00020821,2]
[364733775,1749221457536,-3484.56,0.00020821,2]
[364733776,1749221457547,-440.0,0.00020821,2]
[364733777,1749221457556,-3431.75,0.00020821,2]
[364733778,1749221457566,-440.0,0.00020821,2]
[364733779,1749221457575,-440.0,0.00020821,2]
[364733780,1749221457585,-440.0,0.00020821,2]
[364733781,1749221457595,-440.0,0.00020821,2]
[364733782,1749221457605,-440.0,0.00020821,2]
[364733783,1749221457615,-440.0,0.00020821,2]
[364733784,1749221457624,-440.0,0.00020821,2]
[364733785,1749221457634,-2565.25,0.00020821,2]
[364733786,1749221457644,-630.41,0.00020821,2]
[364733787,1749221457653,-3341.58,0.00020821,2]
[364733788,1749221457662,-332.2,0.00020821,2]
[364733789,1749221457671,-1359.12,0.00020821,2]
[364733790,1749221457681,-2695.29,0.00020821,2]
[364733791,1749221457691,-1033.38,0.00020821,2]
[364733792,1749221457701,-440.0,0.00020821,2]
[364733793,1749221457710,-390.0,0.00020821,2]
[364733794,1749221457808,-440.0,0.00020821,2]
[364733795,1749221457818,-380.0,0.00020821,2]
[364733796,1749221457828,-440.0,0.00020821,2]
[364733797,1749221457838,-1275.03,0.00020821,2]
[364733798,1749221457849,-440.0,0.00020821,2]
[364733799,1749221457859,-320.0,0.00020821,2]
[364733800,1749221457869,-440.0,0.00020821,2]
[364733801,1749221457880,-1382.16,0.00020821,2]
[364733802,1749221457890,-440.0,0.00020821,2]
[364733803,1749221457899,-440.0,0.00020821,2]
[364733804,1749221457909,-440.0,0.00020821,2]
[364733805,1749221457918,-712.69,0.00020821,2]
[364733806,1749221457928,-440.0,0.00020821,2]
[364733807,1749221457937,-7042.23,0.00020821,2]
[364733808,1749221457947,-440.0,0.00020821,2]
[364733809,1749221457958,-440.0,0.00020821,2]
[364733810,1749221457968,-440.0,0.00020821,2]
[364733811,1749221457977,-440.0,0.00020821,2]
[364733812,1749221457987,-440.0,0.00020821,2]
[364733813,1749221457996,-440.0,0.00020821,2]
[364733814,1749221458005,-152.106619,0.00020821,2]
[364733815,1749221458015,-2141.64,0.00020821,2]
[364733816,1749221458023,-1048.92,0.00020821,2]
[364733817,1749221458032,-1728.8,0.00020821,2]
[364733818,1749221458042,-318.85,0.00020821,2]
[364733819,1749221458051,-440.0,0.00020821,2]
[364733820,1749221458061,-1610.94,0.00020821,2]
[364733821,1749221458070,-151.0,0.00020821,2]
[364733822,1749221458079,-318.36172699,0.00020821,2]
[364733823,1749221458089,-762.23,0.00020821,2]
[364733824,1749221458098,-440.0,0.00020821,2]
[364733825,1749221458108,-440.0,0.00020821,2]
[364733826,1749221458117,-440.0,0.00020821,2]
[364733827,1749221458126,-398.2654813,0.00020821,2]
[364733828,1749221458135,-440.0,0.00020821,2]
[364733829,1749221458145,-440.0,0.00020821,2]
[364733830,1749221458153,-440.0,0.00020821,2]
[364733831,1749221458163,-440.0,0.00020821,2]
[364733832,1749221458172,-440.0,0.00020821,2]
[364733833,1749221458182,-440.0,0.00020821,2]
[364733834,1749221458192,-430.0,0.00020821,2]
[364733835,1749221458201,-549.15,0.00020821,2]
[364733836,1749221458211,-440.0,0.00020821,2]
[364733837,1749221458222,-440.0,0.00020821,2]
[364733838,1749221458233,-1303.87,0.00020821,2]
[364733839,1749221458244,-440.0,0.00020821,2]
[364733840,1749221458253,-188.30378963,0.00020821,2]
[364733841,1749221458263,-3348.6,0.00020821,2]
[364733842,1749221458274,-440.0,0.00020821,2]
[364733843,1749221458284,-440.0,0.00020821,2]
[364733844,1749221458294,-330.0,0.00020821,2]
[364733845,1749221458306,-400.0,0.00020821,2]
[364733846,1749221458315,-440.0,0.00020821,2]
[364733847,1749221458326,-3960.93,0.00020821,2]
[364733848,1749221458336,-151.0,0.00020821,2]
[364733849,1749221458346,-151.0,0.00020821,2]
[364733850,1749221458355,-440.0,0.00020821,2]
[364733851,1749221458364,-3666.78,0.00020821,2]
[364733852,1749221458374,-440.0,0.00020821,2]
[364733853,1749221458383,-420.0,0.00020896,2]
[364733854,1749221458393,-332.0,0.00020896,2]
[364733855,1749221458402,-420.0,0.00020896,2]
[364733856,1749221458414,-420.0,0.00020896,2]
[364733857,1749221458424,-5100.6586578,0.00020934,4]
[364733858,1749221458434,-1680.0,0.00020997,2]
[364733859,1749221458443,-440.0,0.00021095,2]
[364733860,1749221458453,-440.0,0.00021095,2]
[364733861,1749221458463,-440.0,0.00021095,2]
[364733862,1749221458473,-487.07,0.00021095,2]
[364733863,1749221458482,-320.0,0.00021095,2]
[364733864,1749221458492,-440.0,0.00021095,2]
[364733865,1749221458501,-440.0,0.00021095,2]
[364733866,1749221458510,-231.61168407,0.00021095,2]
[364733867,1749221458519,-440.0,0.00021095,2]
[364733868,1749221458529,-440.0,0.00021095,2]
[364733869,1749221458539,-440.0,0.00021095,2]
[364733870,1749221458548,-440.0,0.00021095,2]
[364733871,1749221458557,-4395.92,0.00021095,2]
[364733872,1749221458567,-440.0,0.00021095,2]
[364733873,1749221458576,-440.0,0.00021095,2]
[364733874,1749221458586,-3484.56,0.00021095,2]
[364733875,1749221458596,-440.0,0.00021095,2]
[364733876,1749221458606,-3431.75,0.00021095,2]
[364733877,1749221458616,-440.0,0.00021095,2]
[364733878,1749221458625,-440.0,0.00021095,2]
[364733879,1749221458634,-440.0,0.00021095,2]
[364733880,1749221458644,-370.0,0.00021095,2]
[364733881,1749221458654,-440.0,0.00021095,2]
[364733882,1749221458665,-380.0,0.00021095,2]
[364733883,1749221458675,-440.0,0.00021095,2]
[364733884,1749221458685,-2565.25,0.00021095,2]
[364733885,1749221458695,-630.41,0.00021095,2]
[364733886,1749221458704,-3341.58,0.00021095,2]
[364733887,1749221458714,-1359.12,0.00021095,2]
[364733888,1749221458723,-2695.29,0.00021095,2]
[364733889,1749221458732,-1033.38,0.00021095,2]
[364733890,1749221458741,-440.0,0.00021095,2]
[364733891,1749221458750,-440.0,0.00021095,2]
[364733892,1749221458760,-366.0,0.00021095,2]
[364733893,1749221458771,-1275.03,0.00021095,2]
[364733894,1749221458785,-440.0,0.00021095,2]
[364733895,1749221458796,-440.0,0.00021095,2]
[364733896,1749221458810,-1382.16,0.00021095,2]
[364733897,1749221458819,-440.0,0.00021095,2]
[364733898,1749221458829,-440.0,0.00021095,2]
[364733899,1749221458838,-440.0,0.00021095,2]
[364733900,1749221458848,-712.69,0.00021095,2]
[364733901,1749221458858,-440.0,0.00021095,2]
[364733902,1749221458867,-7042.23,0.00021095,2]
[364733903,1749221458876,-440.0,0.00021095,2]
[364733904,1749221458885,-440.0,0.00021095,2]
[364733905,1749221458895,-440.0,0.00021095,2]
[364733906,1749221458904,-440.0,0.00021095,2]
[364733907,1749221458913,-440.0,0.00021095,2]
[364733908,1749221458923,-440.0,0.00021095,2]
[364733909,1749221458933,-2141.64,0.00021095,2]
[364733910,1749221458943,-1048.92,0.00021095,2]
[364733911,1749221458955,-1728.8,0.00021095,2]
[364733912,1749221458964,-440.0,0.00021095,2]
[364733913,1749221458973,-1610.94,0.00021095,2]
[364733914,1749221458982,-762.23,0.00021095,2]
[364733915,1749221458992,-440.0,0.00021095,2]
[364733916,1749221459001,-440.0,0.00021095,2]
[364733917,1749221459010,-440.0,0.00021095,2]
[364733918,1749221459019,-440.0,0.00021095,2]
[364733919,1749221459029,-440.0,0.00021095,2]
[364733920,1749221459038,-440.0,0.00021095,2]
[364733921,1749221459047,-440.0,0.00021095,2]
[364733922,1749221459056,-440.0,0.00021095,2]
[364733923,1749221459065,-440.0,0.00021095,2]
[364733924,1749221459075,-549.15,0.00021095,2]
[364733925,1749221459084,-440.0,0.00021095,2]
[364733926,1749221459094,-440.0,0.00021095,2]
[364733927,1749221459108,-1303.87,0.00021095,2]
[364733928,1749221459118,-440.0,0.00021095,2]
[364733929,1749221459128,-3348.6,0.00021095,2]
[364733930,1749221459137,-440.0,0.00021095,2]
[364733931,1749221459148,-310.61648874,0.00021095,2]
[364733932,1749221459158,-440.0,0.00021095,2]
[364733933,1749221459168,-3960.93,0.00021095,2]
[364733934,1749221459178,-440.0,0.00021095,2]
[364733935,1749221459187,-3666.78,0.00021095,2]
[364733936,1749221459196,-440.0,0.00021095,2]
[364733937,1749221459208,-5100.6586578,0.00021107,4]
[364733938,1749221459218,-151.0,0.00021145,2]
[364733939,1749221459227,-500.0,0.00021145,2]
[364733940,1749221459236,-500.0,0.00021145,2]
[364733941,1749221459246,-500.0,0.00021213,2]
[364733942,1749221459255,-500.0,0.00021213,2]
[364733943,1749221459265,-500.0,0.00021217,2]
[364733944,1749221459274,-160.35918792,0.00021217,2]
[364733945,1749221459283,-326.21787451,0.00021217,2]
[364733946,1749221459293,-500.0,0.00021217,2]
[364733947,1749221459390,-500.0,0.00021217,2]
[364733948,1749221459400,-168.88924514,0.00021217,2]
[364733949,1749221459409,-500.0,0.00021221,2]
[364733950,1749221459419,-649.81756849,0.00021221,2]
[364733951,1749221459429,-500.0,0.00021221,2]
[364733952,1749221459438,-500.0,0.00021221,2]
[364733953,1749221459448,-621.09360266,0.00021221,2]
[364733954,1749221459458,-500.0,0.00021221,2]
[364733955,1749221459468,-600.0,0.00021221,2]